Cogmind - Beta 16 @@@ ROGUE MODE // 2026.01.02 @ 21:23:09 Player: KZ_RAD Result: Destroyed by 3D-W3P(z) with Makeshift Shrapnel Gun Performance ------------- Evolutions (1) 500 Regions Visited (4) 800 Robots Destroyed (36) 180 Value Destroyed (589) 589 Prototype IDs (0) 0 Alien Tech Used (0) 0 Bonus (-55) -55 TOTAL SCORE: 2014 Bonus ------- Friendly Fire -55 Cogmind --------- Core Integrity 0/400 Matter 164/300 Energy 65/100 System Corruption 1% Temperature Cool (0) Movement Walking (125) Location -7/Zion Parts ------- > --- POWER (1) -------- (None) > --- PROPULSION (3) --- Improved Carbon-fiber Leg Improved Titanium Leg > --- UTILITY (3) ------ Small Storage Unit Signal Interpreter > --- WEAPON (2) ------- (None) > --- INVENTORY (8) ---- High-capacity Storage Unit Terrain Scanner Terrain Scan Processor Peak State ------------ > --- POWER ------------ (None) > --- PROPULSION ------- Improved Carbon-fiber Leg Improved Titanium Leg Makeshift Leg > --- UTILITY ---------- Small Storage Unit Signal Interpreter > --- WEAPON ----------- (None) > --- INVENTORY -------- High-capacity Storage Unit Terrain Scanner Terrain Scan Processor [Rating: 14] Favorites ----------- Power Light Ion Engine Engine Light Ion Engine Propulsion Wheel Leg Improved Carbon-fiber Leg Wheel Wheel Utility Small Storage Unit Storage Small Storage Unit Processor Signal Interpreter Weapon Rocket Launcher Ballistic Gun Light Assault Rifle Launcher Rocket Launcher Build | -11 -10 -9 -9 -7 ------- Run | Yrd Mat Mat Min Zio Slots Evolved 2 | . . 2 . . Power . | . . . . . Propulsion 1 | . . 1 . . Utility 1 | . . 1 . . Weapon . | . . . . . Parts Attached 23 | 6 6 5 1 5 Power 6 | 2 1 1 . 2 Engine 6 | 2 1 1 . 2 Core . | . . . . . Reactor . | . . . . . Propulsion 8 | 2 1 1 1 3 Treads . | . . . . . Leg 3 | . . . . 3 Wheel 5 | 2 1 1 1 . Hover . | . . . . . Flight . | . . . . . Utility 3 | 1 1 1 . . Device . | . . . . . Storage 1 | 1 . . . . Processor 2 | . 1 1 . . Hackware . | . . . . . Protection . | . . . . . Artifact . | . . . . . Weapon 6 | 1 3 2 . . Energy Gun . | . . . . . Energy Cannon . | . . . . . Ballistic Gun 1 | 1 . . . . Ballistic Cannon . | . . . . . Launcher 5 | . 3 2 . . Special Weapon . | . . . . . Impact Weapon . | . . . . . Slashing Weapon . | . . . . . Piercing Weapon . | . . . . . Special Melee Weapon . | . . . . . Unidentified Prototypes . | . . . . . Parts Lost 12 | . . . 1 11 Power 2 | . . . . 2 Propulsion 5 | . . . 1 4 Utility 1 | . . . . 1 Weapon 4 | . . . . 4 Highest Loss Streak 10 | . . . 1 10 To Critical Strikes . | . . . . . Average Backups 4 | 1 4 5 5 4 Power . | . . . . . Propulsion . | . . . . . Utility 2 | . 2 3 3 3 Weapon 1 | . . 2 2 1 Tool/Special . | . . . . . Unused Backups 4 | . 1 . . 3 Power . | . . . . . Propulsion 1 | . 1 . . . Utility 3 | . . . . 3 Weapon . | . . . . . Tool/Special . | . . . . . Average Slot Usage (%) 94 | . 91 99 98 94 Engine 11 | . 13 11 11 10 Wheel 29 | . 28 33 31 29 Storage 11 | . 14 11 11 11 Processor 18 | . 9 21 22 21 Ballistic Gun 2 | . 9 . . . Launcher 19 | . 15 22 22 20 Peak Build Rating 14 | 5 10 11 11 14 Average Rating 9 | 3 7 11 10 10 On Entrance 7 | . 5 10 11 11 Avg Prop Armor Cover (%) . | . . . . . Naked Turns . | . . . . . Heaviest Build 23 | 11 16 16 16 23 Greatest Support 58 | 20 20 30 30 58 Greatest Overweight (x) 6 | . . . . 6 Average Overweight (x) . | . . . . . Largest Inventory Capacity 8 | 8 8 8 8 8 Average Capacity 7 | 7 8 8 8 8 Most Carried 8 | 2 8 7 6 6 Average Carried 4 | 1 4 5 5 4 Final Capacity 8 | 8 8 8 8 8 Final Carried 8 | 1 8 6 5 3 Class Distribution -------------------- 97% | Mutant Dominant Class ---------------- Mutant | -10/Materials Mutant | -9/Materials Mutant | -9/Mines Mutant | -7/Zion Resources | -11 -10 -9 -9 -7 ----------- Run | Yrd Mat Mat Min Zio Matter Collected 757 | 209 92 419 27 10 Remotely . | . . . . . Salvage Created 688 | . 242 307 58 81 Parts 56 | . 19 20 1 16 Haulers Intercepted 1 | . 1 . . . Recyclers Shooed 1 | . . . 1 . Parts Field Recycled . | . . . . . Retrieved Matter . | . . . . . Parts Self-Destructed . | . . . . . Prevented . | . . . . . Parts Restored . | . . . . . Kills | -11 -10 -9 -9 -7 ------- Run | Yrd Mat Mat Min Zio Combat Hostiles Destroyed 13 | . 6 5 2 . Guns 2 | . 2 . . . AOE 11 | . 4 5 2 . Classes Destroyed 10 | . 7 2 . 1 Worker 6 | . 4 2 . . Builder 2 | . 2 . . . Hauler 1 | . 1 . . . Recycler 2 | . . 2 . . Operator 1 | . 1 . . . Watcher 1 | . 1 . . . Swarmer 3 | . 3 . . . Grunt 9 | . 3 4 2 . Sentry 1 | . . 1 . . Zionite 10 | . . . . 10 Best Kill Streak 9 | . 5 7 4 9 Combat Bots Only 4 | . 3 4 3 . Max Kills in Single Turn 4 | . 3 3 2 4 Gunslinging . | . . . . . Exploded 3 | . 3 2 2 . Melee . | . . . . . Uniques/NPCs Destroyed . | . . . . . Combat | -11 -10 -9 -9 -7 -------- Run | Yrd Mat Mat Min Zio Hostile Shots Fired 149 | . 29 22 . 98 Missed 59 | . 11 8 . 40 Hits 90 | . 18 14 . 58 Melee 6 | . . . . 6 Projectile 84 | . 18 14 . 52 Critical Strikes 3 | . . . . 3 Damage Taken 1572 | . 287 135 32 1118 Core 451 | . 43 . . 408 Absorbed by Shields . | . . . . . Core Remaining (%) 91 | 100 82 . . . Volleys Fired 56 | . 42 4 1 9 Largest 2 | . 2 2 2 2 Hottest 66 | . 66 66 66 66 Shots Fired 68 | . 45 8 2 13 Gun 26 | . 26 . . . Cannon . | . . . . . Launcher 42 | . 19 8 2 13 Special . | . . . . . Kinetic 26 | . 26 . . . Thermal . | . . . . . Explosive 42 | . 19 8 2 13 Electromagnetic . | . . . . . Robot Hit Streak 6 | . 5 6 1 3 Robot Miss Streak 4 | . 3 1 1 4 Penetration Max . | . . . . . Secondary Targets . | . . . . . Shots Hit Robots 36 | . 26 4 1 5 Core Hits 53 | . 24 12 4 13 Critical Kills . | . . . . . Critical Parts Destroyed . | . . . . . Critical Strikes . | . . . . . Melee Attacks . | . . . . . Impact . | . . . . . Slashing . | . . . . . Piercing . | . . . . . Sneak Attacks . | . . . . . Combat Hostiles . | . . . . . Follow-up Attacks . | . . . . . Damage Inflicted 2401 | . 941 502 127 831 Guns 115 | . 115 . . . Cannons . | . . . . . Explosions 2254 | . 826 502 122 804 Melee . | . . . . . Ramming 32 | . . . 5 27 Kinetic 115 | . 115 . . . Thermal . | . . . . . Explosive 2254 | . 826 502 122 804 Electromagnetic . | . . . . . Impact . | . . . . . Slashing . | . . . . . Piercing . | . . . . . Highest Corruption 1 | . . . . 1 Average Corruption 1 | . . . . 1 Corruption Purged . | . . . . . Corruption Blocked . | . . . . . Overload Shots . | . . . . . Overflow Damage 103 | . 74 12 3 14 Projectiles . | . . . . . Explosions 103 | . 74 12 3 14 Melee . | . . . . . Knockbacks . | . . . . . Impact . | . . . . . Kinetic . | . . . . . Secondary . | . . . . . Self-Inflicted Damage 189 | . 94 . 32 63 Shots 8 | . 4 . 1 3 Rammed 5 | . . . 1 4 Targets Rammed 5 | . . . 1 4 Kicked . | . . . . . Crushed . | . . . . . Highest Temperature 32 | . 9 . . 32 Average Temperature 7 | . 5 . . 9 Received Heat Transfer 360 | . 75 39 . 246 Siege Activations . | . . . . . Martial Activations . | . . . . . Shielding Activations . | . . . . . Robots Disrupted . | . . . . . Combat Hostiles . | . . . . . Robots Corrupted . | . . . . . Combat Hostiles . | . . . . . Parts Fried . | . . . . . Impact Corruptions . | . . . . . Robots Melted . | . . . . . Combat Hostiles . | . . . . . Parts Melted . | . . . . . Heat Transferred . | . . . . . Parts Sabotaged . | . . . . . Parts Stolen . | . . . . . Parts Stripped . | . . . . . Power Chain Reactions . | . . . . . Alert | -11 -10 -9 -9 -7 ------- Run | Yrd Mat Mat Min Zio Maximum Alert Level 1 | . . 1 . . Low Security (%) 97 | 100 100 91 100 . Level 1 2 | . . 8 . . Level 2 . | . . . . . Level 3 . | . . . . . Level 4 . | . . . . . Level 5 . | . . . . . High Security . | . . . . . Max Security . | . . . . . Peak Influence 216 | . 166 216 151 . Initial 79 | . . 65 79 . Average 73 | . 55 100 133 . Influence Increases 645 | . 332 231 82 . Destroy 0b10 Robot/C 260 | . 120 100 40 . Destroy 0b10 Robot/NC 65 | . 45 20 . . Destroy Leader 74 | . 34 30 10 . Successful Hack 33 | . 12 21 . . Disable Machine 30 | . 15 . 15 . Destroy Structure 168 | . 106 45 17 . Lose Combat Pursuer 15 | . . 15 . . Influence Decreases 645 | . 176 181 177 111 Entered New Map 329 | . . 91 127 111 Time Decay 306 | . 176 90 40 . Lost Part 10 | . . . 10 . Squads Dispatched 4 | . 1 3 . . Investigation 1 | . . 1 . . Extermination . | . . . . . Reinforcement 3 | . 1 2 . . Assault . | . . . . . Garrison . | . . . . . Intercept . | . . . . . Searches Triggered . | . . . . . Construction Impeded 1 | . . 1 . . Haulers Reinforced . | . . . . . Active Scanning Responses . | . . . . . Cargo Convoy Interrupts . | . . . . . Stealth | -11 -10 -9 -9 -7 --------- Run | Yrd Mat Mat Min Zio Distress Signals 3 | . . 3 . . Communications Jammed . | . . . . . Distress Signals . | . . . . . Times Spotted 52 | . 10 17 . 25 Peak Tracking Total 13 | . 3 9 . 13 Tactical Retreats 1 | . . 1 . . Traps | -11 -10 -9 -9 -7 ------- Run | Yrd Mat Mat Min Zio Traps Triggered . | . . . . . Indirectly . | . . . . . Trap Hack Attempts . | . . . . . Triggered . | . . . . . Disarmed . | . . . . . Reprogrammed . | . . . . . Reused . | . . . . . Traps Extracted . | . . . . . Installed . | . . . . . Triggered . | . . . . . Machines | -11 -10 -9 -9 -7 ---------- Run | Yrd Mat Mat Min Zio Machines Disabled 2 | . 1 . 1 . Max in Single Turn 1 | . 1 . 1 . Machines Repaired . | . . . . . Machines Dismantled . | . . . . . Machines Sabotaged . | . . . . . Overloaded Fab Kills . | . . . . . Hacking | -11 -10 -9 -9 -7 --------- Run | Yrd Mat Mat Min Zio Machines Accessed 6 | . 3 3 . . Terminals 5 | . 3 2 . . Fabricators . | . . . . . Repair Stations . | . . . . . Recycling Units . | . . . . . Scanalyzers 1 | . . 1 . . Garrison Access . | . . . . . Total Hacks 18 | . 6 12 . . Successful 12 | . 3 9 . . Failed 6 | . 3 3 . . Catastrophic 1 | . . 1 . . Database Lockouts . | . . . . . Manual 3 | . . . . 3 Terminals 13 | . 6 7 . . Fabricators . | . . . . . Repair Stations . | . . . . . Recycling Units . | . . . . . Scanalyzers 5 | . . 5 . . Garrison Access . | . . . . . Terminal Hacks 7 | . 3 4 . . Record 1 | . 1 . . . Branch Access Points 2 | . 1 1 . . Hauler Manifests 2 | . 1 1 . . Registered Components 1 | . . 1 . . Zone Layout 1 | . . 1 . . Fabricator Hacks . | . . . . . Repair Station Hacks . | . . . . . Recycling Unit Hacks . | . . . . . Scanalyzer 5 | . . 5 . . Insert Component 1 | . . 1 . . Analyze 2 | . . 2 . . Retrieve Study 2 | . . 2 . . Garrison Access Hacks . | . . . . . Unauthorized Hacks . | . . . . . Terminals . | . . . . . Fabricators . | . . . . . Repair Stations . | . . . . . Recycling Units . | . . . . . Scanalyzers . | . . . . . Garrison Access . | . . . . . Data Cores Recovered . | . . . . . Used . | . . . . . Hacking Detections 4 | . 2 2 . . Full Trace Events 1 | . . 1 . . Feedback Events . | . . . . . Feedback Blocked . | . . . . . Robot Schematics Acquired . | . . . . . Robots Built . | . . . . . Authchips . | . . . . . Time . | . . . . . Total Robot Build Rating . | . . . . . Part Schematics Acquired 1 | . . 1 . . Parts Built . | . . . . . Authchips . | . . . . . Time . | . . . . . Total Part Build Rating . | . . . . . Part Studies Acquired 2 | . . 2 . . Parts Repaired . | . . . . . Time . | . . . . . Parts Recycled . | . . . . . Recycled Matter . | . . . . . Retrieved Matter . | . . . . . Retrieved Components . | . . . . . Parts Scanalyzed 1 | . . 1 . . Part Schematics Acquired 1 | . . 1 . . Parts Damaged . | . . . . . Bothacking | -11 -10 -9 -9 -7 ------------ Run | Yrd Mat Mat Min Zio Used RIF Installer . | . . . . . Robots Hacked . | . . . . . Non-combat . | . . . . . Combat . | . . . . . Robot Hacks Applied . | . . . . . Relay Couplers Released . | . . . . . Fabnet Peak Effective % . | . . . . . Robots Rewired . | . . . . . Allies Hacked . | . . . . . Hacks Repelled . | . . . . . Allies | -11 -10 -9 -9 -7 -------- Run | Yrd Mat Mat Min Zio Total Allies . | . . . . . Largest Group . | . . . . . Highest-Rated Group . | . . . . . Highest-Rated Ally . | . . . . . Total Orders . | . . . . . Ally Attacks . | . . . . . Total Damage . | . . . . . Kills . | . . . . . Allies Corrupted . | . . . . . Allies Melted . | . . . . . Intel | -11 -10 -9 -9 -7 ------- Run | Yrd Mat Mat Min Zio Active Infowar (turns) 1006 | . . 184 87 735 T.N.C. 1006 | . . 184 87 735 Robot Analysis Total . | . . . . . Derelict Logs Recovered 2 | . . . 1 1 Drone Launches . | . . . . . Drone Recoveries . | . . . . . Exploration | -11 -10 -9 -9 -7 ------------- Run | Yrd Mat Mat Min Zio Turns Passed 1471 | 46 381 185 87 772 Spaces Moved 1102 | 43 341 212 118 388 Core 10 | 2 . . . 8 Treads . | . . . . . Legs 25 | . . . . 25 Wheels 1067 | 41 341 212 118 355 Hover . | . . . . . Flight . | . . . . . Fastest Speed 50 | 50 80 70 70 70 Average Speed 77 | 78 80 75 70 77 Slowest Speed 350 | 80 80 80 70 350 Overloaded Moves . | . . . . . Propulsion Burnouts . | . . . . . Robots Hopped . | . . . . . Potential Cave-ins . | . . . . . Cave-ins Triggered . | . . . . . Exploration Rate (%) 33 | 4 61 28 26 50 Regions Visited 4 Branch Regions 2 Pre-discovered Areas 2 | . . . 1 1 Known Exits Taken 3 | . 1 1 1 . Unknown Exits Taken 1 | 1 . . . . Scrap Searched 1 | . . . 1 . Spaces Dug . | . . . . . Terrain Destroyed 204 | . 125 57 19 3 Melee . | . . . . . Projectile . | . . . . . AOE 204 | . 125 57 19 3 Terrain Rammed . | . . . . . Walls Destroyed . | . . . . . Machines Disabled . | . . . . . Actions | -11 -10 -9 -9 -7 --------- Run | Yrd Mat Mat Min Zio Total 1655 | 54 412 225 120 844 Wait 430 | . . . . 430 Move 1098 | 42 340 211 117 388 Hop . | . . . . . Pick Up 28 | 6 16 1 . 5 Fast Attach . | . . . . . Attach 20 | 5 6 2 1 6 Detach . | . . . . . Swap 9 | 1 1 6 . 1 Drop 9 | . 7 1 . 1 Fire 56 | . 42 4 1 9 Melee . | . . . . . Ram 5 | . . . 1 4 Kick . | . . . . . Crush . | . . . . . Escape Stasis . | . . . . . Rewire . | . . . . . Trap . | . . . . . Miscellaneous . | . . . . . Route ------- -11/Scrapyard -10/Materials (discovered 3 exits: *Mat x2 / *Min) -9/Materials (discovered 2 exits: [*Mat] / *Min) -9/Mines (discovered 2 exits: [*Mat] / *Zio) -7/Zion History --------- Turn | Location | Event 29 | -11/Scrapyard | Discovered new exit (range 13) 47 | -11/Scrapyard | Entered Materials 81 | -10/Materials | Identified exit to Mines 224 | -10/Materials | Discovered new exit (range 4) 225 | -10/Materials | Identified exit to Materials 325 | -10/Materials | Build established: Mutant 402 | -10/Materials | Discovered exit to Materials (range 13) 428 | -10/Materials | Entered another Materials area 428 | -9/Materials | Evolved 2 slots: Propulsion x1, Utility x1 475 | -9/Materials | Identified exit to Mines 487 | -9/Materials | Met 8R-AWN 551 | -9/Materials | Discovered new exit (range 15) 613 | -9/Materials | Entered Mines 649 | -9/Mines | Discovered new exit (range 11) 662 | -9/Mines | Learned location of Storage (-8) 696 | -9/Mines | A Derelict revealed a hidden shortcut to a safe place 700 | -9/Mines | Identified exit to Zion 700 | -9/Mines | Entered Zion 1347 | -7/Zion | Attacked by Zionites 1434 | -7/Zion | Core integrity fell below 50% 1449 | -7/Zion | Core integrity fell below 20% 1472 | -7/Zion | Destroyed by 3D-W3P(z) with Makeshift Shrapnel Gun Last Messages --------------- EQ-T35(z) pulls a Mak. Spear out of the Twisted Machinery. T9-7A9(z) overheating. N8-NOK(z) heat spikes uncontrollably. N8-NOK(z) overheating. T9-7A9(z) overheating. Knocked back. Acquired 2 matter. N8-NOK(z) heat damages Mak. Hacking Suite. Mak. Leg destroyed. CR-KWZ(z) emerges from the Twisted Machinery. CR-KWZ(z) pulls a Mak. Axe out of the Twisted Machinery. N8-NOK(z) destroyed. JI-80A(z) heat damages Backup Plating III. JI-80A(z) overheating. JI-80A(z) heat damages Backup Plating III, Mak. Power Source, Backup Power III, Backup Laser III. JI-80A(z) overheating. Map ----- +----------------------------------------------------+ | ??????????"" """#"""= """"#????????????????? | | ??????????#"" """ "% * """###???????????????? | | ??????????""" / """##"?????????????? | | ??????????"" = """"#?????????????? | | ???????????"""" """#????????????? | | ?????????##""#"" ""#????????????? | | ????????"""""#"" "" %% """????????????? | | ????????""" """ !! """"????????????? | | ???????#""" " """#?????????????? | | ???????#" *%%""" %" ""##?????????????? | | ??????##" ! " " ""#??????????????? | | ?????? "" "" % """##??????????????? | | ?????? """ z %""""""#??????????????? | | ??????? """ z ""####??????????????? | | ?????? "" ""#?????????????????? | | ?????? # ""##?????????????????? | | ???????# """#??????????????????? | | ???????# #""#??????????????????? | | ???????# = ""##?#?###????????????? | | ???????#" "" "" z ""#"?"#""#"???????????? | | ???????""" " """##" " ""???????????? | | ???????#" z """"#" "???????????? | | ???????"" M ""###" "???????????? | | ?????? zM """#?" "####???????? | | ?????? "" z ""##"" """""##??????? | | ????????"" """" @ ""##"" """#??????? | | ?????????" """"" z """##"" "#####???? | | ?????????" """" " """#"" ##""##### | | ????????"" """"""""" """#"" """""#"# | | ??????##"" """"""""" """"""" """"""" | | ??????#"" """""""#" l | | ??????#"" """ | | ???????""" """ | | ???????""""" """"" "#"#"z" ""#" | | ???????#"""" """""" """""" """" """"" " | | ???????#" "" """#"" """" """"""""#" " " | | ??????##" """""" """ """"""#""""" " | | ??????#"" "" """"""""""" | | ??????##" " """ | | ??????#"" " "" """ | | ???????#"" " "" """""""""" """ | | ???????#""" """ """ """""#""""" """ | | ???????##""" """""#"" """##???##"" ?""" | | ????????##"" ""#""#" ""##??????"" """" | | ?????????#""" ""###" """""??????" ???? " | | ?????????##""" """#?# ????? ??? " | | ??????????#""" """### ???? ????$? | | ??????????#"#"""####"" """"""""""???????????? | | ??????????##"""##??#" ""##"?????????????? | | ????????????#"#????#"" ""#???????????????? | +----------------------------------------------------+ Best States ------------- Heat Dissipation 28 Energy Generation 16 Energy Capacity 290 Matter Stores 300 Matter Capacity 300 Sight Range 16 Terrain Scan Density 10 Evasion (%) 50 Item Schematics ----------------- Rocket Launcher | -9/Materials | Scanalyzed Robot Schematics ------------------ None Fabricated ------------ Nothing Repaired ---------- Nothing Studied --------- Rocket Launcher | -9/Materials | Hacked Wheel | -9/Materials | Hacked Alien Tech Used ----------------- None Achievements -------------- Follow The Leader Robot Respite Challenges ------------ None Game ------ Seed TransportHelicalDesublimator Manual? 0 Play Time 00:25:58 Cumulative 3.2 hours Start 2026.01.02 @ 20:57:42 End 2026.01.02 @ 21:23:09 Sessions 1 Manual Loads 0 Difficulty Rogue Special Mode None Game No. 6 Rogue 6 Adventurer 0 Explorer 0 Win Type - Total 0 Types 0/0/0/0/0/0/0/0/0/0 Lore% 1 Gallery% 6 Achievement% 7 Wizard Run 0 Options --------- Layout 1 ASCII 0 Keyboard 0 Movement Mouse Keybinds 0 Fullscreen 1 Font 32/SmallcapsGlow Map View 50x35 Zoom Use 0% Tactical HUD 0 Map Filters NONE Filters NONE Steam 1 RUN: 63710b13-6478-4013-8f70-f930aa98de51